Cogmind - Beta 13 @@@ ROGUE MODE // 2024.06.06 @ 19:13:00 Player: Trantor Result: Destroyed by D-53 Grenadier with Mini Grenade Launcher Performance ------------- Evolutions (0) 0 Regions Visited (2) 400 Robots Destroyed (17) 85 Value Destroyed (316) 316 Prototype IDs (2) 40 Alien Tech Used (0) 0 Bonus (0) 0 TOTAL SCORE: 841 Bonus ------- None Cogmind --------- Core Integrity 0/250 Matter 268/300 Energy 250/250 System Corruption 0% Temperature Cool (0) Movement Core (200) Ox3 Location -10/Mines Parts ------- > --- POWER (1) -------- Ion Engine > --- PROPULSION (2) --- (None) > --- UTILITY (2) ------ Small Storage Unit > --- WEAPON (2) ------- (None) > --- INVENTORY (8) ---- Light Ion Engine Large Matter Pod (150) Targeting Computer Light Armor Plating Beam Cannon Beam Cannon Grenade Launcher Grenade Launcher Peak State ------------ > --- POWER ------------ Ion Engine > --- PROPULSION ------- Wheel Wheel > --- UTILITY ---------- Improved Heat Sink Small Storage Unit > --- WEAPON ----------- Particle Gun Grenade Launcher > --- INVENTORY -------- Light Ion Engine Large Matter Pod Targeting Computer Light Armor Plating Beam Cannon Beam Cannon Beam Cannon Grenade Launcher [Rating: 10] Favorites ----------- Power Ion Engine Engine Ion Engine Propulsion Wheel Leg Aluminum Leg Wheel Wheel Utility Small Storage Unit Device Heat Sink Storage Small Storage Unit Weapon Beam Cannon Energy Gun Particle Gun Energy Cannon Beam Cannon Ballistic Gun Assault Rifle Launcher Grenade Launcher Build | -11 -10 -10 ------- Run | Yrd Mat Min Slots Evolved . | . . . Power . | . . . Propulsion . | . . . Utility . | . . . Weapon . | . . . Parts Attached 11 | . 8 3 Power . | . . . Engine . | . . . Core . | . . . Reactor . | . . . Propulsion 3 | . 3 . Treads . | . . . Leg . | . . . Wheel 3 | . 3 . Hover . | . . . Flight . | . . . Utility 3 | . 2 1 Device 3 | . 2 1 Storage . | . . . Processor . | . . . Hackware . | . . . Protection . | . . . Artifact . | . . . Weapon 5 | . 3 2 Energy Gun 1 | . 1 . Energy Cannon 2 | . 1 1 Ballistic Gun 1 | . 1 . Ballistic Cannon . | . . . Launcher 1 | . . 1 Special Weapon . | . . . Impact Weapon . | . . . Slashing Weapon . | . . . Piercing Weapon . | . . . Special Melee Weapon . | . . . Unidentified Prototypes . | . . . Parts Lost 7 | . 2 5 Power . | . . . Propulsion 2 | . . 2 Utility 2 | . 1 1 Weapon 3 | . 1 2 Highest Loss Streak 5 | . 1 5 To Critical Strikes . | . . . Average Slot Usage (%) 97 | . 98 95 Engine 14 | . 14 14 Leg 9 | . 11 . Wheel 17 | . 16 26 Device 12 | . 12 14 Storage 14 | . 14 14 Energy Gun 13 | . 13 12 Energy Cannon 7 | . 7 7 Ballistic Gun 5 | . 6 . Naked Turns . | . . . Heaviest Build 17 | 13 17 17 Greatest Support 20 | 20 20 20 Greatest Overweight (x) 3 | . . 3 Average Overweight (x) . | . . . Largest Inventory Capacity 8 | 8 8 8 Average Capacity 8 | 8 8 8 Most Carried 8 | 6 8 8 Average Carried 7 | 6 6 8 Final Capacity 8 | 8 8 8 Final Carried 8 | 6 8 8 Class Distribution -------------------- 100% | Mutant Dominant Class ---------------- Mutant | -10/Materials Mutant | -10/Mines Resources | -11 -10 -10 ----------- Run | Yrd Mat Min Matter Collected 500 | 200 267 33 Remotely . | . . . Salvage Created 466 | . 405 61 Parts 37 | . 30 7 Haulers Intercepted 1 | . 1 . Recyclers Shooed . | . . . Parts Field Recycled . | . . . Retrieved Matter . | . . . Parts Self-Destructed . | . . . Prevented . | . . . Kills | -11 -10 -10 ------- Run | Yrd Mat Min Combat Hostiles Destroyed 12 | . 9 3 Guns 6 | . 6 . Cannons 3 | . 3 . AOE 3 | . . 3 Classes Destroyed 6 | . 5 1 Worker 2 | . 1 1 Hauler 1 | . 1 . Recycler 1 | . . 1 Watcher 1 | . 1 . Swarmer 6 | . 3 3 Grunt 6 | . 6 . Best Kill Streak 5 | . 3 5 Combat Bots Only 3 | . 3 3 Max Kills in Single Turn 2 | . 1 2 Gunslinging . | . . . Exploded 1 | . . 1 Melee . | . . . Uniques/NPCs Destroyed . | . . . Combat | -11 -10 -10 -------- Run | Yrd Mat Min Hostile Shots Fired 66 | . 41 25 Missed 15 | . 8 7 Damage Taken 1039 | . 393 646 Core 262 | . 80 182 Absorbed by Shields . | . . . Core Remaining (%) 100 | 100 . . Volleys Fired 38 | . 29 9 Largest 2 | . 2 2 Hottest 125 | . 125 125 Shots Fired 67 | . 57 10 Gun 43 | . 42 1 Cannon 19 | . 15 4 Launcher 5 | . . 5 Special . | . . . Kinetic 19 | . 19 . Thermal 34 | . 29 5 Explosive 5 | . . 5 Electromagnetic 9 | . 9 . Robot Hit Streak 9 | . 9 8 Robot Miss Streak 5 | . 5 1 Penetration Max . | . . . Secondary Targets . | . . . Shots Hit Robots 40 | . 32 8 Core Hits 26 | . 17 9 Critical Kills . | . . . Critical Parts Destroyed . | . . . Critical Strikes . | . . . Melee Attacks . | . . . Impact . | . . . Slashing . | . . . Piercing . | . . . Sneak Attacks . | . . . Combat Hostiles . | . . . Follow-up Attacks . | . . . Damage Inflicted 702 | . 436 266 Guns 313 | . 313 . Cannons 194 | . 123 71 Explosions 195 | . . 195 Melee . | . . . Ramming . | . . . Kinetic 141 | . 141 . Thermal 301 | . 230 71 Explosive 195 | . . 195 Electromagnetic 65 | . 65 . Impact . | . . . Slashing . | . . . Piercing . | . . . Highest Corruption . | . . . Average Corruption . | . . . Corruption Purged . | . . . Corruption Blocked . | . . . Overload Shots . | . . . Overflow Damage 10 | . . 10 Projectiles . | . . . Explosions 10 | . . 10 Melee . | . . . Knockbacks . | . . . Impact . | . . . Kinetic . | . . . Secondary . | . . . Self-Inflicted Damage 37 | . . 37 Shots 1 | . . 1 Rammed . | . . . Targets Rammed . | . . . Kicked . | . . . Crushed . | . . . Highest Temperature 181 | . 181 21 Average Temperature 50 | . 53 10 Received Heat Transfer 171 | . 171 . Siege Activations . | . . . Robots Corrupted . | . . . Combat Hostiles . | . . . Parts Fried 2 | . 2 . Impact Corruptions . | . . . Robots Melted . | . . . Combat Hostiles . | . . . Parts Melted . | . . . Heat Transferred 644 | . 496 148 Parts Sabotaged . | . . . Parts Stolen . | . . . Parts Stripped . | . . . Power Chain Reactions . | . . . Alert | -11 -10 -10 ------- Run | Yrd Mat Min Peak Influence 224 | . 224 145 Initial 15 | . . 15 Average 67 | . 66 78 Maximum Alert Level 1 | . 1 . Low Security (%) 94 | 100 93 100 Level 1 5 | . 6 . Level 2 . | . . . Level 3 . | . . . Level 4 . | . . . Level 5 . | . . . High Security . | . . . Max Security . | . . . Squads Dispatched . | . . . Investigation . | . . . Extermination . | . . . Reinforcement . | . . . Assault . | . . . Garrison . | . . . Intercept . | . . . Searches Triggered . | . . . Construction Impeded . | . . . Haulers Reinforced . | . . . Active Scanning Responses . | . . . Cargo Convoy Interrupts . | . . . Stealth | -11 -10 -10 --------- Run | Yrd Mat Min Distress Signals 2 | . 2 . Communications Jammed . | . . . Distress Signals . | . . . Times Spotted 18 | . 12 6 Peak Tracking Total 5 | . 5 3 Tactical Retreats . | . . . Traps | -11 -10 -10 ------- Run | Yrd Mat Min Traps Triggered . | . . . Indirectly . | . . . Trap Hack Attempts . | . . . Triggered . | . . . Disarmed . | . . . Reprogrammed . | . . . Reused . | . . . Traps Extracted . | . . . Installed . | . . . Triggered . | . . . Machines | -11 -10 -10 ---------- Run | Yrd Mat Min Machines Disabled 1 | . . 1 Max in Single Turn 1 | . . 1 Machines Repaired . | . . . Machines Dismantled . | . . . Machines Sabotaged . | . . . Overloaded Fab Kills . | . . . Hacking | -11 -10 -10 --------- Run | Yrd Mat Min Machines Accessed 4 | . 4 . Terminals 4 | . 4 . Fabricators . | . . . Repair Stations . | . . . Recycling Units . | . . . Scanalyzers . | . . . Garrison Access . | . . . Total Hacks 13 | . 13 . Successful 6 | . 6 . Failed 7 | . 7 . Catastrophic . | . . . Database Lockouts . | . . . Manual 11 | . 11 . Terminals 13 | . 13 . Fabricators . | . . . Repair Stations . | . . . Recycling Units . | . . . Scanalyzers . | . . . Garrison Access . | . . . Terminal Hacks 4 | . 4 . Robot Analysis 3 | . 3 . Prototype ID Bank 1 | . 1 . Fabricator Hacks . | . . . Repair Station Hacks . | . . . Recycling Unit Hacks . | . . . Scanalyzer . | . . . Garrison Access Hacks . | . . . Unauthorized Hacks 2 | . 2 . Terminals 2 | . 2 . Botnet 2 | . 2 . Fabricators . | . . . Repair Stations . | . . . Recycling Units . | . . . Scanalyzers . | . . . Garrison Access . | . . . Data Cores Recovered . | . . . Used . | . . . Hacking Detections 3 | . 3 . Full Trace Events . | . . . Feedback Events . | . . . Feedback Blocked . | . . . Robot Schematics Acquired . | . . . Robots Built . | . . . Authchips . | . . . Time . | . . . Total Robot Build Rating . | . . . Part Schematics Acquired . | . . . Parts Built . | . . . Authchips . | . . . Time . | . . . Total Part Build Rating . | . . . Parts Repaired . | . . . Time . | . . . Parts Recycled . | . . . Recycled Matter . | . . . Retrieved Matter . | . . . Retrieved Components . | . . . Parts Scanalyzed . | . . . Part Schematics Acquired . | . . . Parts Damaged . | . . . Bothacking | -11 -10 -10 ------------ Run | Yrd Mat Min Used RIF Installer . | . . . Robots Hacked . | . . . Non-combat . | . . . Combat . | . . . Robot Hacks Applied . | . . . Relay Couplers Released . | . . . Fabnet Peak Effective % . | . . . Robots Rewired . | . . . Allies Hacked . | . . . Hacks Repelled . | . . . Allies | -11 -10 -10 -------- Run | Yrd Mat Min Total Allies . | . . . Largest Group . | . . . Highest-Rated Group . | . . . Highest-Rated Ally . | . . . Total Orders . | . . . Ally Attacks . | . . . Total Damage . | . . . Kills . | . . . Allies Corrupted . | . . . Allies Melted . | . . . Intel | -11 -10 -10 ------- Run | Yrd Mat Min Robot Analysis Total 3 | . 3 . Derelict Logs Recovered 1 | . . 1 Drone Launches . | . . . Drone Recoveries . | . . . Exploration | -11 -10 -10 ------------- Run | Yrd Mat Min Turns Passed 623 | 3 524 96 Spaces Moved 513 | 3 424 86 Core 2 | . . 2 Treads . | . . . Legs 141 | 3 138 . Wheels 370 | . 286 84 Hover . | . . . Flight . | . . . Fastest Speed 80 | 120 80 80 Average Speed 91 | 120 93 82 Slowest Speed 200 | 120 120 200 Overloaded Moves . | . . . Propulsion Burnouts . | . . . Robots Hopped . | . . . Cave-ins Triggered . | . . . Exploration Rate (%) 28 | 2 57 25 Regions Visited 2 Branch Regions 1 Pre-discovered Areas 1 | . . 1 Known Exits Taken . | . . . Unknown Exits Taken 2 | 1 1 . Scrap Searched 1 | . . 1 Spaces Dug . | . . . Terrain Destroyed 36 | . . 36 Melee . | . . . Projectile . | . . . AOE 36 | . . 36 Terrain Rammed . | . . . Walls Destroyed . | . . . Machines Disabled . | . . . Actions | -11 -10 -10 --------- Run | Yrd Mat Min Total 601 | 2 499 100 Wait 20 | . 19 1 Move 511 | 2 423 86 Hop . | . . . Pick Up 11 | . 11 . Fast Attach 2 | . 2 . Attach 5 | . 5 . Detach . | . . . Swap 4 | . 1 3 Drop 10 | . 9 1 Fire 38 | . 29 9 Melee . | . . . Ram . | . . . Kick . | . . . Crush . | . . . Escape Stasis . | . . . Rewire . | . . . Trap . | . . . Miscellaneous . | . . . Route ------- -11/Scrapyard -10/Materials (discovered 4 exits: [*Mat x2] / [*Min x2]) -10/Mines (discovered 1 exit: [*Mat]) History --------- Turn | Location | Event 1 | -11/Scrapyard | Discovered new exit (range 2) 4 | -11/Scrapyard | Entered Materials 101 | -10/Materials | Discovered new exit (range 16) 224 | -10/Materials | Discovered new exit (range 13) 316 | -10/Materials | Build established: Mutant 393 | -10/Materials | Discovered new exit (range 15) 426 | -10/Materials | Discovered new exit (range 7) 528 | -10/Materials | Entered Mines 545 | -10/Mines | Met a Derelict bent on vengeance 561 | -10/Mines | Discovered new exit (range 11) 599 | -10/Mines | Assembled infested the area 599 | -10/Mines | Joined a pair of Derelicts in attacking an 0b10 outpost 617 | -10/Mines | Core integrity fell below 50% 622 | -10/Mines | Core integrity fell below 20% 624 | -10/Mines | Destroyed by D-53 Grenadier with Mini Grenade Launcher Last Messages --------------- 00607_ R-06 Scavenger collects Heat Sink. 00607_ Y-45 Defender suffers critical hit (Burn). 00607_ Y-45 Defender destroyed. 00608_ C-30 ARC bursts open, deploying its payload. 00608_ D-53 Grenadier unfolds itself. 00609_ R-06 Scavenger collects Imp. Heat Sink. 00610_ The unstable cave ceiling collapses. 00610_ PI-NZJ(g) destroyed. 00610_ R-06 Scavenger destroyed. 00611_ Wheel destroyed. 00613_ Particle Gun destroyed. 00618_ D-53 Grenadier heat short circuits Shock Absorption System. 00619_ Beam Cannon destroyed. 00620_ Wheel destroyed. 00622_ The unstable cave ceiling collapses. 00622_ Imp. Heat Sink destroyed. 00623_ The unstable cave ceiling collapses. Map ----- +----------------------------------------------------+ | | | | | | | | | | | | | ????????????????????????????????????????? | | ????????????????????????????????????????? | | ????????????????????????????????????????? | | ????????????????????????????????????????? | | ????????????????????????????????????????? | | ????????????????????????????????????????? | | ????????????????????????????????????????? | | ????????????????????????????????????????? | | ????????????????????????????????????????? | | ????????????????????????????????????????? | | ?????????????########???????????????????? | | ???????????### ##??????????????????? | | ?????????### #??????????????????? | | ????????## #??????????????????? | | ????????# # #??????????????????? | | ????????# #??????????????????? | | ????????# #??????????????????? | | ????????# #??????????????????? | | ???????### # ##??????????????????? | | ??????# @ #???????????????????? | | ??????## d d #????????????????? | | ??????# % # ## ##????????????????? | | ??????## #### ###??#?????????????????? | | ???????# #??#####??????????????????????? | | ???????# #?????????????????????????????? | | ???????# #?????????????????????????????? | | ????#### ##????????????????????????????? | | ???## # ###???????????????????????????? | | ??## ########????????????????????? | | ??# # #????????????????????? | | ??# % #????????????????????? | | ??#[ < ## #????????????????????? | | ??# = = = #### #????????????????????? | | ??# * #??# #????????????????????? | | ??# #??## #????????????????????? | | ??# #???# ##????????????????????? | | ??# #???# #?????????????????????? | | ??##########???# #?????????????????????? | | ???????????????# #?????????????????????? | | ???????????????# #?????##??????????????? | | ???????????????# #???? ##?????????????? | | ???????????????# #### ##????????????? | | ??????????????## #????????????? | | ?????????????## #????????????? | +----------------------------------------------------+ Best States ------------- Heat Dissipation 39 Energy Generation 10 Energy Capacity 250 Matter Stores 300 Matter Capacity 300 Sight Range 16 Terrain Scan Density 10 Evasion (%) 55 Item Schematics ----------------- None Robot Schematics ------------------ None Fabricated ------------ Nothing Alien Tech Used ----------------- None Achievements -------------- None Challenges ------------ None Game ------ Seed CannonIntegratedOptics Manual? 0 Play Time 00:10:23 Cumulative 294.2 hours Start 2024.06.06 @ 19:04:12 End 2024.06.06 @ 19:13:00 Sessions 1 Manual Loads 0 Difficulty Rogue Special Mode None Game No. 174 Rogue 130 Adventurer 44 Explorer 0 Win Type - Total 2 Types 2/0/0/0/0/0/0/0/0 Lore% 58 Gallery% 63 Achievement% 58 Wizard Run 0 Options --------- Layout 2 ASCII 0 Keyboard 1 Movement Vi Keybinds 1 Fullscreen 2 Font 24/Smallcaps Map View 25x22 Zoom Use 100% Tactical HUD 1 Map Filters NONE Filters NONE Steam 1 RUN: 2ea5a3f5-e3fb-4a6d-9ffc-a97fb0f3821a